Cogmind - Beta 13 X2 @@@ ROGUE MODE // 2024.02.12 @ 01:22:43 Player: H3-RMN Result: Destroyed by D-53 Grenadier with Mini Grenade Launcher Performance ------------- Evolutions (0) 0 Regions Visited (2) 400 Robots Destroyed (20) 100 Value Destroyed (359) 359 Prototype IDs (2) 40 Alien Tech Used (0) 0 Bonus (0) 0 TOTAL SCORE: 899 Bonus ------- None Cogmind --------- Core Integrity 0/250 Matter 183/300 Energy 250/250 System Corruption 0% Temperature Cool (0) Movement Treading (480) Ox4 Location -10/Mines Parts ------- > --- POWER (1) -------- Ion Engine > --- PROPULSION (2) --- Light Treads Compact Wheel > --- UTILITY (2) ------ Huge Storage Unit > --- WEAPON (2) ------- Shotgun Shotgun > --- INVENTORY (25) --- Light Treads Small Storage Unit Small Storage Unit Large Storage Unit High-capacity Matter Pod (173) Visual Processing Unit Sensor Array Improved Terrain Scanner Light Armor Plating Light Armor Plating Light Armor Plating Light Armor Plating Light Armor Plating Light Armor Plating High-powered Tractor Beam Heavy EM Pulse Gun Heavy EM Pulse Gun Heavy EM Pulse Gun Heavy EM Pulse Gun Beam Cannon Shotgun EMP Blaster Plasma Cutter Peak State ------------ > --- POWER ------------ Ion Engine > --- PROPULSION ------- Light Treads Compact Wheel > --- UTILITY ---------- Huge Storage Unit High-powered Tractor Beam > --- WEAPON ----------- Shotgun Shotgun > --- INVENTORY -------- Light Treads Small Storage Unit Small Storage Unit Large Storage Unit High-capacity Matter Pod Visual Processing Unit Sensor Array Improved Terrain Scanner Light Armor Plating Light Armor Plating Tractor Beam High-powered Tractor Beam Heavy EM Pulse Gun Heavy EM Pulse Gun Beam Cannon Shotgun Shotgun EMP Blaster Rocket Launcher Plasma Cutter [Rating: 13] Favorites ----------- Power Ion Engine Engine Ion Engine Propulsion Light Treads Treads Light Treads Wheel Compact Wheel Utility Huge Storage Unit Device High-powered Tractor Beam Storage Huge Storage Unit Weapon Shotgun Energy Gun Small Laser Ballistic Gun Shotgun Launcher Rocket Launcher Build | -11 -10 -10 ------- Run | Yrd Mat Min Slots Evolved . | . . . Power . | . . . Propulsion . | . . . Utility . | . . . Weapon . | . . . Parts Attached 20 | 7 10 3 Power 2 | 1 1 . Engine 2 | 1 1 . Core . | . . . Reactor . | . . . Propulsion 5 | 2 3 . Treads 3 | 1 2 . Leg . | . . . Wheel 2 | 1 1 . Hover . | . . . Flight . | . . . Utility 6 | 2 4 . Device 4 | 1 3 . Storage 2 | 1 1 . Processor . | . . . Hackware . | . . . Protection . | . . . Artifact . | . . . Weapon 7 | 2 2 3 Energy Gun 1 | 1 . . Energy Cannon . | . . . Ballistic Gun 5 | 1 2 2 Ballistic Cannon . | . . . Launcher 1 | . . 1 Special Weapon . | . . . Impact Weapon . | . . . Slashing Weapon . | . . . Piercing Weapon . | . . . Special Melee Weapon . | . . . Unidentified Prototypes . | . . . Parts Lost 3 | . . 3 Power . | . . . Propulsion . | . . . Utility 1 | . . 1 Weapon 2 | . . 2 Highest Loss Streak 3 | . . 3 To Critical Strikes . | . . . Average Slot Usage (%) 99 | . 100 99 Engine 14 | . 14 14 Treads 14 | . 14 14 Wheel 14 | . 14 14 Device 13 | . 14 13 Storage 14 | . 14 14 Ballistic Gun 27 | . 27 27 Naked Turns . | . . . Heaviest Build 93 | 13 92 93 Greatest Support 20 | 20 20 16 Greatest Overweight (x) 5 | 1 5 5 Average Overweight (x) 3 | . 3 5 Largest Inventory Capacity 25 | 8 25 25 Average Capacity 20 | 7 19 25 Most Carried 25 | 6 25 25 Average Carried 15 | 3 14 24 Final Capacity 25 | 8 25 25 Final Carried 25 | 6 25 23 Class Distribution -------------------- 100% | Mutant Dominant Class ---------------- Mutant | -10/Materials Mutant | -10/Mines Resources | -11 -10 -10 ----------- Run | Yrd Mat Min Matter Collected 816 | 275 448 93 Remotely 369 | . 276 93 Salvage Created 520 | 99 337 84 Parts 41 | 4 33 4 Haulers Intercepted 1 | . 1 . Recyclers Shooed 1 | . . 1 Parts Field Recycled . | . . . Retrieved Matter . | . . . Parts Self-Destructed . | . . . Prevented . | . . . Kills | -11 -10 -10 ------- Run | Yrd Mat Min Combat Hostiles Destroyed 18 | . 10 8 Guns 12 | . 10 2 AOE 6 | . . 6 Classes Destroyed 10 | 2 7 1 Worker 1 | . 1 . Builder 1 | . 1 . Tunneler 1 | 1 . . Hauler 1 | . 1 . Recycler 1 | 1 . . Operator 1 | . 1 . Watcher 2 | . 2 . Swarmer 6 | . 6 . Grunt 6 | . 4 2 Assembled 6 | . . 6 Best Kill Streak 6 | 1 3 6 Combat Bots Only 6 | . 3 6 Max Kills in Single Turn 2 | 1 1 2 Gunslinging . | . . . Exploded 2 | . . 2 Melee . | . . . Uniques/NPCs Destroyed . | . . . Combat | -11 -10 -10 -------- Run | Yrd Mat Min Hostile Shots Fired 55 | . 29 26 Missed 15 | . 9 6 Damage Taken 1005 | . 343 662 Core 256 | . 57 199 Absorbed by Shields . | . . . Core Remaining (%) 100 | 100 . . Volleys Fired 55 | 5 35 15 Largest 2 | 2 2 2 Hottest 60 | 60 60 46 Shots Fired 99 | 10 70 19 Gun 91 | 10 70 11 Cannon . | . . . Launcher 8 | . . 8 Special . | . . . Kinetic 80 | 5 64 11 Thermal 11 | 5 6 . Explosive 8 | . . 8 Electromagnetic . | . . . Robot Hit Streak 10 | 4 10 7 Robot Miss Streak 5 | 2 4 5 Penetration Max . | . . . Secondary Targets 1 | . . 1 Max Gunslinging Chain 1 | . . 1 Shots Hit Robots 62 | 6 44 12 Core Hits 46 | 3 26 17 Critical Kills . | . . . Critical Parts Destroyed . | . . . Critical Strikes . | . . . Melee Attacks . | . . . Impact . | . . . Slashing . | . . . Piercing . | . . . Sneak Attacks . | . . . Combat Hostiles . | . . . Follow-up Attacks . | . . . Damage Inflicted 1374 | 58 558 758 Guns 782 | 58 558 166 Cannons . | . . . Explosions 592 | . . 592 Melee . | . . . Ramming . | . . . Kinetic 694 | 12 516 166 Thermal 88 | 46 42 . Explosive 592 | . . 592 Electromagnetic . | . . . Impact . | . . . Slashing . | . . . Piercing . | . . . Highest Corruption . | . . . Average Corruption . | . . . Corruption Purged . | . . . Corruption Blocked . | . . . Overload Shots . | . . . Overflow Damage 33 | . . 33 Projectiles . | . . . Explosions 33 | . . 33 Melee . | . . . Knockbacks . | . . . Impact . | . . . Kinetic . | . . . Secondary . | . . . Self-Inflicted Damage 27 | . . 27 Shots 1 | . . 1 Rammed . | . . . Targets Rammed . | . . . Kicked . | . . . Crushed . | . . . Highest Temperature 91 | 20 91 4 Average Temperature 35 | 12 49 2 Received Heat Transfer 105 | . 90 15 Siege Activations . | . . . Robots Corrupted . | . . . Combat Hostiles . | . . . Parts Fried . | . . . Impact Corruptions . | . . . Robots Melted . | . . . Combat Hostiles . | . . . Parts Melted . | . . . Heat Transferred 200 | 100 100 . Parts Sabotaged . | . . . Parts Stolen . | . . . Parts Stripped . | . . . Power Chain Reactions . | . . . Missiles Intercepted . | . . . Alert | -11 -10 -10 ------- Run | Yrd Mat Min Peak Influence 253 | 10 253 93 Initial 6 | . 6 5 Average 90 | 4 113 15 Maximum Alert Level 1 | . 1 . Low Security (%) 89 | 100 86 100 Level 1 10 | . 13 . Level 2 . | . . . Level 3 . | . . . Level 4 . | . . . Level 5 . | . . . High Security . | . . . Max Security . | . . . Squads Dispatched 3 | . 3 . Investigation 2 | . 2 . Extermination . | . . . Reinforcement 1 | . 1 . Assault . | . . . Garrison . | . . . Intercept . | . . . Searches Triggered . | . . . Construction Impeded . | . . . Haulers Reinforced . | . . . Active Scanning Responses . | . . . Cargo Convoy Interrupts . | . . . Stealth | -11 -10 -10 --------- Run | Yrd Mat Min Distress Signals 1 | . 1 . Communications Jammed . | . . . Distress Signals . | . . . Times Spotted 39 | . 23 16 Peak Tracking Total 11 | . 3 11 Tactical Retreats 1 | . 1 . Traps | -11 -10 -10 ------- Run | Yrd Mat Min Traps Triggered 3 | . 3 . Indirectly . | . . . Trap Hack Attempts . | . . . Triggered . | . . . Disarmed . | . . . Reprogrammed . | . . . Reused . | . . . Traps Extracted . | . . . Installed . | . . . Triggered . | . . . Machines | -11 -10 -10 ---------- Run | Yrd Mat Min Machines Disabled . | . . . Max in Single Turn . | . . . Machines Repaired . | . . . Machines Dismantled . | . . . Machines Sabotaged . | . . . Overloaded Fab Kills . | . . . Hacking | -11 -10 -10 --------- Run | Yrd Mat Min Machines Accessed 5 | . 5 . Terminals 4 | . 4 . Fabricators . | . . . Repair Stations . | . . . Recycling Units 1 | . 1 . Scanalyzers . | . . . Garrison Access . | . . . Total Hacks 20 | . 20 . Successful 9 | . 9 . Failed 11 | . 11 . Catastrophic 1 | . 1 . Database Lockouts . | . . . Manual 16 | . 16 . Terminals 18 | . 18 . Fabricators . | . . . Repair Stations . | . . . Recycling Units 2 | . 2 . Scanalyzers . | . . . Garrison Access . | . . . Terminal Hacks 5 | . 5 . Robot Schematic 1 | . 1 . Robot Analysis 2 | . 2 . Prototype ID Bank 1 | . 1 . Locate Traps 1 | . 1 . Fabricator Hacks . | . . . Repair Station Hacks . | . . . Recycling Unit Hacks 1 | . 1 . Report Inventory 1 | . 1 . Scanalyzer . | . . . Garrison Access Hacks . | . . . Unauthorized Hacks 3 | . 3 . Terminals 2 | . 2 . Track 1 | . 1 . Botnet 1 | . 1 . Fabricators . | . . . Repair Stations . | . . . Recycling Units 1 | . 1 . Tunnel 1 | . 1 . Scanalyzers . | . . . Garrison Access . | . . . Data Cores Recovered . | . . . Used . | . . . Hacking Detections 4 | . 4 . Full Trace Events 1 | . 1 . Feedback Events . | . . . Feedback Blocked . | . . . Robot Schematics Acquired 1 | . 1 . Robots Built . | . . . Authchips . | . . . Time . | . . . Total Robot Build Rating . | . . . Part Schematics Acquired . | . . . Parts Built . | . . . Authchips . | . . . Time . | . . . Total Part Build Rating . | . . . Parts Repaired . | . . . Time . | . . . Parts Recycled . | . . . Recycled Matter . | . . . Retrieved Matter . | . . . Retrieved Components . | . . . Parts Scanalyzed . | . . . Part Schematics Acquired . | . . . Parts Damaged . | . . . Bothacking | -11 -10 -10 ------------ Run | Yrd Mat Min Used RIF Installer . | . . . Robots Hacked . | . . . Non-combat . | . . . Combat . | . . . Robot Hacks Applied . | . . . Relay Couplers Released . | . . . Fabnet Peak Effective % . | . . . Robots Rewired . | . . . Allies Hacked . | . . . Hacks Repelled . | . . . Allies | -11 -10 -10 -------- Run | Yrd Mat Min Total Allies . | . . . Largest Group . | . . . Highest-Rated Group . | . . . Highest-Rated Ally . | . . . Total Orders . | . . . Ally Attacks . | . . . Total Damage . | . . . Kills . | . . . Allies Corrupted . | . . . Allies Melted . | . . . Intel | -11 -10 -10 ------- Run | Yrd Mat Min Robot Analysis Total 2 | . 2 . Derelict Logs Recovered . | . . . Drone Launches . | . . . Drone Recoveries . | . . . Exploration | -11 -10 -10 ------------- Run | Yrd Mat Min Turns Passed 1692 | 88 1297 307 Spaces Moved 966 | 63 762 141 Core 1 | 1 . . Treads 32 | 2 30 . Legs . | . . . Wheels 933 | 60 732 141 Hover . | . . . Flight . | . . . Fastest Speed 50 | 50 95 175 Average Speed 147 | 92 146 175 Slowest Speed 175 | 160 175 175 Overloaded Moves . | . . . Propulsion Burnouts . | . . . Robots Hopped . | . . . Cave-ins Triggered . | . . . Exploration Rate (%) 41 | 5 84 34 Regions Visited 2 Branch Regions 1 Pre-discovered Areas 1 | . 1 . Known Exits Taken . | . . . Unknown Exits Taken 2 | 1 1 . Scrap Searched . | . . . Spaces Dug . | . . . Terrain Destroyed 48 | . . 48 Melee . | . . . Projectile . | . . . AOE 48 | . . 48 Terrain Rammed . | . . . Walls Destroyed . | . . . Machines Disabled . | . . . Actions | -11 -10 -10 --------- Run | Yrd Mat Min Total 1138 | 80 877 181 Wait 56 | . 34 22 Move 964 | 62 761 141 Hop . | . . . Pick Up 32 | 6 26 . Fast Attach 8 | 7 1 . Attach 2 | . . 2 Detach . | . . . Swap 10 | . 9 1 Drop 11 | . 11 . Fire 55 | 5 35 15 Melee . | . . . Ram . | . . . Kick . | . . . Crush . | . . . Escape Stasis . | . . . Rewire . | . . . Trap . | . . . Miscellaneous . | . . . Route ------- -11/Scrapyard -10/Materials (discovered 4 exits: [*Mat x2] / [*Min x2]) -10/Mines History --------- Turn | Location | Event 9 | -11/Scrapyard | Discovered new exit (range 14) 89 | -11/Scrapyard | Entered Materials 168 | -10/Materials | Discovered new exit (range 15) 316 | -10/Materials | Build established: Mutant 392 | -10/Materials | Discovered new exit (range 16) 486 | -10/Materials | Discovered new exit (range 15) 938 | -10/Materials | Discovered new exit (range 12) 1386 | -10/Materials | Entered Mines 1655 | -10/Mines | Assembled infested the area 1678 | -10/Mines | Core integrity fell below 50% 1687 | -10/Mines | Core integrity fell below 20% 1693 | -10/Mines | Destroyed by D-53 Grenadier with Mini Grenade Launcher Last Messages --------------- 01674_ as-28724 destroyed. 01674_ C-30 ARC bursts open, deploying its payload. 01674_ D-53 Grenadier unfolds itself. 01675_ as-48425 destroyed. 01675_ as-42141 destroyed. 01676_ Acquired 1 matter. 01676_ Acquired 9 matter. 01676_ as-04500 destroyed. 01676_ as-93215 destroyed. 01677_ as-60467 destroyed. 01677_ as-72691 destroyed. 01678_ Acquired 1 matter. 01678_ as-02329 destroyed. 01679_ Hpw. Tractor Beam destroyed. 01680_ Destroyed Asb. Hover Unit. 01680_ as-31718 destroyed. 01681_ Shotgun destroyed. 01682_ The unstable cave ceiling collapses. 01688_ Rocket Launcher destroyed. 01690_ The unstable cave ceiling collapses. Map ----- +----------------------------------------------------+ | ?????????????????????????????????????????????????? | | ?????????????????????????????????????????????????? | | ?????????????????????????????????????????????????? | | ?????????????????????????????????????????????????? | | ?????????????????????????????????????????????????? | | ?????????????????????????????????????????????????? | | ?????????????????????????????????????????????????? | | ?????????????????????????????????????????????????? | | ?????????????????????????????????????????????????? | | ?????????????????????????????????????????????????? | | ?????????????????????????????????????????????????? | | ??????????????????????#????? #???????????????????? | | ??????????????????????# ???? #???????????????????? | | ??????????????????????# ???# ### %#?????????????? | | ??????????????????????# ??? # #????????????? | | ??????????????????????? ??? #????????????? | | ??????????????????????? ??? # ???????????? | | ??????????????????????? ### ???????????? | | ??????????????????????? a ??????????? | | ???????????????????????# # ??????????? | | ?????????????????????### ???????????? | | ?????????????????????# ?????????????? | | ????????????????????## #???????????????? | | ???????????????????## #?? ????????????? | | ???????????????????# #?? #???????????? | | ???????????????????# @ ## #???????????? | | ???????????????????# d #????????????? | | ???????????????????# r""" ##????????????? | | ???????????????????# d """%##?????????????? | | ???????????????????## """ #??????????????? | | ????????????????????### ## #### ""???????? | | ??????????????????????#####* ""???????? | | ???????????????????????## [ ""???????? | | ???????????????????????# ####### ""???????? | | ???????????????????????# # u#????????????????? | | ???????????????????????## ## ??????? ??????? | | ???????????????????????## ## ??? ??????? | | ??????????????????????## ##########?? ???????? | | ?????????????????????## #??????????? ???????? | | ?????????????????????# #????????### ???????? | | ????????????????????## ##????????# ???????? | | ????????????????????# #######?????# ???????? | | #???????????????????# ##?## ####??# #???????? | | #???????????????????## ##?##[ ##?# #???????? | | #????????????????????# #?## ### #???????? | | #????????????????????# ### ## #???????? | | #?????################ | # #???????? | | ###???# # #????#### | | ##??# ###################### ##??## # | | ##?# #???????????????????## ##?# | +----------------------------------------------------+ Best States ------------- Heat Dissipation 25 Energy Generation 10 Energy Capacity 250 Matter Stores 300 Matter Capacity 300 Sight Range 16 Terrain Scan Range 16 Terrain Scan Density 10 Evasion (%) 44 Recoil Reduction 1 Item Schematics ----------------- None Robot Schematics ------------------ M-13 Machinist | -10/Materials | Hacked Fabricated ------------ Nothing Alien Tech Used ----------------- None Achievements -------------- None Challenges ------------ None Game ------ Seed ScatterMasterFemtoactuators Manual? 0 Play Time 00:13:30 Cumulative 543.9 hours Start 2024.02.12 @ 01:11:15 End 2024.02.12 @ 01:22:43 Sessions 1 Manual Loads 0 Difficulty Rogue Special Mode None Game No. 208 Rogue 187 Adventurer 3 Explorer 18 Win Type - Total 13 Types 8/2/1/1/0/1/0/0/0 Lore% 85 Gallery% 93 Achievement% 82 Wizard Run 0 Options --------- ASCII 0 Keyboard 0 Movement Numpad Keybinds 0 Fullscreen 1 Font 18/SmallcapsGlow Map View 76x50 Zoom Use 0% Tactical HUD 1 Map Filters NONE Filters NONE Steam 1 RUN: fd8d1876-579d-4595-b6f1-bd1f8010c768